fUSD/lending_fUSD_20240428
["ID","MTS","AMOUNT","RATE_DAILY","PERIOD"]
[324796446,1714335108585,-607.53,0.00012602,2]
[324796447,1714335108595,-931.18,0.00012602,2]
[324796448,1714335108604,-500.0,0.00012602,2]
[324796449,1714335108614,-500.0,0.00012602,2]
[324796450,1714335108624,-500.0,0.00012602,2]
[324796451,1714335108634,-500.0,0.00012602,2]
[324796452,1714335108643,-500.0,0.00012602,2]
[324796453,1714335108653,-500.0,0.00012602,2]
[324796454,1714335108663,-381.11,0.00012602,2]
[324796455,1714335108673,-2112.21,0.00012602,2]
[324796456,1714335108683,-4585.17,0.00012602,2]
[324796457,1714335108693,-500.0,0.00012602,2]
[324796458,1714335108703,-765.05,0.00012602,2]
[324796459,1714335108712,-500.0,0.00012602,2]
[324796460,1714335108722,-151.0,0.00012602,2]
[324796461,1714335108732,-936.743565,0.00012602,2]
[324796462,1714335108742,-500.0,0.00012602,2]
[324796463,1714335108752,-500.0,0.00012602,2]
[324796464,1714335108762,-500.0,0.00012602,2]
[324796465,1714335108772,-500.0,0.00012602,2]
[324796466,1714335108782,-500.0,0.00012602,2]
[324796467,1714335108793,-936.743565,0.00012602,2]
[324796468,1714335108803,-500.0,0.00012602,2]
[324796469,1714335108814,-601.22,0.00012602,2]
[324796470,1714335108823,-2210.179829,0.00012602,2]
[324796471,1714335108835,-500.0,0.00012602,2]
[324796472,1714335108845,-2559.64,0.00012602,2]
[324796473,1714335108855,-500.0,0.00012602,2]
[324796474,1714335108865,-151.0,0.00012602,2]
[324796475,1714335108875,-500.0,0.00012602,2]
[324796476,1714335108886,-2210.179829,0.00012602,2]
[324796477,1714335109132,-621.99,0.00012602,2]
[324796478,1714335109143,-500.0,0.00012602,2]
[324796479,1714335109154,-637.36,0.00012602,2]
[324796480,1714335109164,-4641.66724063,0.00012739,2]
[324796481,1714335109173,-173.12,0.00012826,2]
[324796482,1714335109184,-1163.14,0.00012875,2]
[324796483,1714335109195,-500.0,0.00012876,2]
[324796484,1714335109206,-500.0,0.00012876,2]
[324796485,1714335109216,-631.43,0.00012876,2]
[324796486,1714335109227,-176.65,0.00012876,2]
[324796487,1714335109238,-500.0,0.00012876,2]
[324796488,1714335109248,-500.0,0.00012876,2]
[324796489,1714335109258,-500.0,0.00012876,2]
[324796490,1714335109267,-500.0,0.00012876,2]
[324796491,1714335109277,-500.0,0.00012876,2]
[324796492,1714335109287,-500.0,0.00012876,2]
[324796493,1714335109296,-500.0,0.00012876,2]
[324796494,1714335109307,-500.0,0.00012876,2]
[324796495,1714335109316,-500.0,0.00012876,2]
[324796496,1714335109325,-500.0,0.00012876,2]
[324796497,1714335109334,-387.28,0.00012876,2]
[324796498,1714335109344,-500.0,0.00012876,2]
[324796499,1714335109353,-500.0,0.00012876,2]
[324796500,1714335109363,-500.0,0.00012876,2]
[324796501,1714335109371,-500.0,0.00012876,2]
[324796502,1714335109380,-500.0,0.00012876,2]
[324796503,1714335109390,-500.0,0.00012876,2]
[324796504,1714335109403,-381.0043987,0.00012876,2]
[324796505,1714335109412,-712.87,0.00012876,2]
[324796506,1714335109421,-224.58,0.00012876,2]
[324796507,1714335109430,-500.0,0.00012876,2]
[324796508,1714335109441,-500.0,0.00012876,2]
[324796509,1714335109452,-500.0,0.00012876,2]
[324796510,1714335109462,-528.85,0.00012876,2]
[324796511,1714335109474,-500.0,0.00012876,2]
[324796512,1714335109484,-500.0,0.00012876,2]
[324796513,1714335109496,-600.29,0.00012876,2]
[324796514,1714335109506,-528.41,0.00012876,2]
[324796515,1714335109517,-500.0,0.00012876,2]
[324796516,1714335109526,-521.76,0.00012876,2]
[324796517,1714335109535,-500.0,0.00012876,2]
[324796518,1714335109544,-500.0,0.00012876,2]
[324796519,1714335109553,-500.0,0.00012876,2]
[324796520,1714335109563,-552.84,0.00012876,2]
[324796521,1714335109573,-500.0,0.00012876,2]
[324796522,1714335109582,-553.62,0.00012876,2]
[324796523,1714335109590,-500.0,0.00012876,2]
[324796524,1714335109600,-558.84,0.00012876,2]
[324796525,1714335109609,-718.95,0.00012876,2]
[324796526,1714335109618,-500.0,0.00012876,2]
[324796527,1714335109628,-548.37,0.00012876,2]
[324796528,1714335109637,-522.08,0.00012876,2]
[324796529,1714335109646,-500.0,0.00012876,2]
[324796530,1714335109655,-500.0,0.00012876,2]
[324796531,1714335109664,-500.0,0.00012876,2]
[324796532,1714335109673,-500.0,0.00012876,2]
[324796533,1714335109683,-569.87,0.00012876,2]
[324796534,1714335109692,-535.18,0.00012876,2]
[324796535,1714335109701,-604.05,0.00012876,2]
[324796536,1714335109710,-152.0,0.00012876,2]
[324796537,1714335109720,-500.0,0.00012876,2]
[324796538,1714335109729,-659.69,0.00012876,2]
[324796539,1714335109739,-500.0,0.00012876,2]
[324796540,1714335109748,-500.0,0.00012876,2]
[324796541,1714335109757,-537.27,0.00012876,2]
[324796542,1714335109767,-500.0,0.00012876,2]
[324796543,1714335109776,-522.34,0.00012876,2]
[324796544,1714335109785,-500.0,0.00012876,2]
[324796545,1714335109794,-543.61,0.00012876,2]
[324796546,1714335109803,-507.29,0.00012876,2]
[324796547,1714335109813,-335.79,0.00012876,2]
[324796548,1714335109822,-1120.45,0.00012876,2]
[324796549,1714335109831,-500.0,0.00012876,2]
[324796550,1714335109840,-1025.95,0.00012876,2]
[324796551,1714335109849,-500.0,0.00012876,2]
[324796552,1714335109859,-500.0,0.00012876,2]
[324796553,1714335109868,-500.0,0.00012876,2]
[324796554,1714335109877,-500.0,0.00012876,2]
[324796555,1714335109887,-500.0,0.00012876,2]
[324796556,1714335109896,-500.0,0.00012876,2]
[324796557,1714335109906,-500.0,0.00012876,2]
[324796558,1714335109915,-500.0,0.00012876,2]
[324796559,1714335109927,-500.0,0.00012876,2]
[324796560,1714335109937,-500.0,0.00012876,2]
[324796561,1714335109948,-500.0,0.00012876,2]
[324796562,1714335109957,-500.0,0.00012876,2]
[324796563,1714335109967,-500.0,0.00012876,2]
[324796564,1714335109976,-508.08,0.00012876,2]
[324796565,1714335109986,-500.0,0.00012876,2]
[324796566,1714335109995,-552.12,0.00012876,2]
[324796567,1714335110004,-615.27,0.00012876,2]
[324796568,1714335110013,-500.0,0.00012876,2]
[324796569,1714335110022,-500.0,0.00012876,2]
[324796570,1714335110032,-506.84024122,0.00012876,2]
[324796571,1714335110042,-500.0,0.00012876,2]
[324796572,1714335110051,-591.93,0.00012876,2]
[324796573,1714335110061,-500.0,0.00012876,2]
[324796574,1714335110070,-651.59,0.00012876,2]
[324796575,1714335110079,-500.0,0.00012876,2]
[324796576,1714335110089,-643.83,0.00012876,2]
[324796577,1714335110099,-1022.25,0.00012876,2]
[324796578,1714335110108,-926.43,0.00012876,2]
[324796579,1714335110118,-234.32,0.00012876,2]
[324796580,1714335110127,-884.7,0.00012876,2]
[324796581,1714335110136,-500.0,0.00012876,2]
[324796582,1714335110145,-620.12980884,0.00012876,2]
[324796583,1714335110155,-500.0,0.00012876,2]
[324796584,1714335110164,-562.5,0.00012876,2]
[324796585,1714335110173,-1276.87,0.00012876,2]
[324796586,1714335110182,-547.13,0.00012876,2]
[324796587,1714335110192,-500.0,0.00012876,2]
[324796588,1714335110202,-518.76,0.00012876,2]
[324796589,1714335110212,-1269.32,0.00012876,2]
[324796590,1714335110221,-500.0,0.00012876,2]
[324796591,1714335110231,-577.52,0.00012876,2]
[324796592,1714335110241,-500.0,0.00012876,2]
[324796593,1714335110251,-500.0,0.00012876,2]
[324796594,1714335110260,-562.5,0.00012876,2]
[324796595,1714335110269,-500.0,0.00012876,2]
[324796596,1714335110278,-500.0,0.00012876,2]
[324796597,1714335110288,-989.07,0.00012876,2]
[324796598,1714335110298,-771.63,0.00012876,2]
[324796599,1714335110307,-171.53,0.00012876,2]
[324796600,1714335110317,-580.16,0.00012876,2]
[324796601,1714335110326,-500.0,0.00012876,2]
[324796602,1714335110336,-500.0,0.00012876,2]
[324796603,1714335110346,-500.0,0.00012876,2]
[324796604,1714335110355,-500.0,0.00012876,2]
[324796605,1714335110365,-500.0,0.00012876,2]
[324796606,1714335110374,-592.44,0.00012876,2]
[324796607,1714335110383,-948.26,0.00012876,2]
[324796608,1714335110394,-500.0,0.00012876,2]
[324796609,1714335110405,-500.0,0.00012876,2]
[324796610,1714335110415,-500.0,0.00012876,2]
[324796611,1714335110425,-500.0,0.00012876,2]
[324796612,1714335110434,-676.95,0.00012876,2]
[324796613,1714335110444,-500.0,0.00012876,2]
[324796614,1714335110454,-500.0,0.00012876,2]
[324796615,1714335110463,-500.0,0.00012876,2]
[324796616,1714335110473,-500.0,0.00012876,2]
[324796617,1714335110483,-500.0,0.00012876,2]
[324796618,1714335110493,-500.0,0.00012876,2]
[324796619,1714335110502,-500.0,0.00012876,2]
[324796620,1714335110512,-151.0,0.00012876,2]
[324796621,1714335110521,-1354.65,0.00012876,2]
[324796622,1714335110531,-500.0,0.00012876,2]
[324796623,1714335110541,-931.21,0.00012876,2]
[324796624,1714335110550,-1483.98,0.00012876,2]
[324796625,1714335110559,-500.0,0.00012876,2]
[324796626,1714335110569,-500.0,0.00012876,2]
[324796627,1714335110578,-500.0,0.00012876,2]
[324796628,1714335110588,-303.315159,0.00012876,2]
[324796629,1714335110598,-521.169563,0.00012876,2]
[324796630,1714335110607,-718.86,0.00012876,2]
[324796631,1714335110617,-500.0,0.00012876,2]
[324796632,1714335110626,-1102.68,0.00012876,2]
[324796633,1714335110636,-303.315159,0.00012876,2]
[324796634,1714335110646,-521.169563,0.00012876,2]
[324796635,1714335110655,-500.0,0.00012876,2]
[324796636,1714335110665,-1722.960204,0.00012876,2]
[324796637,1714335110675,-500.0,0.00012876,2]
[324796638,1714335110684,-500.0,0.00012876,2]
[324796639,1714335110693,-500.0,0.00012876,2]
[324796640,1714335110703,-1722.960204,0.00012876,2]
[324796641,1714335110713,-324.041959,0.00012876,2]
[324796642,1714335110723,-1191.62,0.00012876,2]
[324796643,1714335110733,-500.0,0.00012876,2]
[324796644,1714335110743,-324.041959,0.00012876,2]
[324796645,1714335110754,-500.0,0.00012876,2]
[324796646,1714335110764,-941.05,0.00012876,2]
[324796647,1714335110773,-500.0,0.00012876,2]
[324796648,1714335110783,-261.67179566,0.00012876,2]
[324796649,1714335110793,-500.0,0.00012876,2]
[324796650,1714335110802,-500.0,0.00012876,2]
[324796651,1714335110813,-500.0,0.00012876,2]
[324796652,1714335110822,-1004.38,0.00012876,2]
[324796653,1714335110832,-151.0,0.00012876,2]
[324796654,1714335110842,-500.0,0.00012876,2]
[324796655,1714335110851,-500.0,0.00012876,2]
[324796656,1714335110861,-500.0,0.00012876,2]
[324796657,1714335110870,-500.0,0.00012876,2]
[324796658,1714335110880,-962.75,0.00012876,2]
[324796659,1714335110890,-520.83,0.00012876,2]
[324796660,1714335110913,-737.17,0.00012876,2]
[324796661,1714335110922,-500.0,0.00012876,2]
[324796662,1714335110932,-500.0,0.00012876,2]
[324796663,1714335110942,-500.0,0.00012876,2]
[324796664,1714335110951,-500.0,0.00012876,2]
[324796665,1714335110962,-500.0,0.00012876,2]
[324796666,1714335110971,-500.0,0.00012876,2]
[324796667,1714335110981,-3080.143203,0.00012876,2]
[324796668,1714335110990,-704.1,0.00012876,2]
[324796669,1714335111001,-3080.143203,0.00012876,2]
[324796670,1714335111011,-697.52,0.00012876,2]
[324796671,1714335111020,-151.0,0.00012876,2]
[324796672,1714335111031,-175.78160754,0.00012876,2]
[324796673,1714335111041,-500.0,0.00012876,2]
[324796674,1714335111050,-892.91,0.00012876,2]
[324796675,1714335111060,-500.0,0.00012876,2]
[324796676,1714335111069,-543.87,0.00012876,2]
[324796677,1714335111079,-500.0,0.00012876,2]
[324796678,1714335111089,-1931.86,0.00012876,2]
[324796679,1714335111099,-2005.27,0.00012876,2]
[324796680,1714335111109,-500.0,0.00012876,2]
[324796681,1714335111119,-500.0,0.00012876,2]
[324796682,1714335111129,-500.0,0.00012876,2]
[324796683,1714335111138,-562.5,0.00012876,2]
[324796684,1714335111148,-520.83,0.00012876,2]
[324796685,1714335111158,-500.0,0.00012876,2]
[324796686,1714335111167,-500.0,0.00012876,2]
[324796687,1714335111177,-500.0,0.00012876,2]
[324796688,1714335111186,-1002.82,0.00012876,2]
[324796689,1714335111195,-551.75,0.00012876,2]
[324796690,1714335111204,-315.89,0.00012876,2]
[324796691,1714335111214,-500.0,0.00012876,2]
[324796692,1714335111223,-607.23,0.00012876,2]
[324796693,1714335111233,-500.0,0.00012876,2]
[324796694,1714335111243,-665.39,0.00012876,2]
[324796695,1714335111252,-500.0,0.00012876,2]
[324796696,1714335111262,-500.0,0.00012876,2]
[324796697,1714335111271,-500.0,0.00012876,2]
[324796698,1714335111281,-500.0,0.00012876,2]
[324796699,1714335111290,-708.13,0.00012876,2]
[324796700,1714335111300,-500.0,0.00012876,2]
[324796701,1714335111309,-1615.1,0.00012876,2]
[324796702,1714335111318,-504.6,0.00012876,2]
[324796703,1714335111328,-500.0,0.00012876,2]
[324796704,1714335111339,-1130.11,0.00012876,2]
[324796705,1714335111348,-582.99,0.00012876,2]
[324796706,1714335111357,-534.03,0.00012876,2]
[324796707,1714335111367,-5395.03,0.00012876,2]
[324796708,1714335111376,-500.0,0.00012876,2]
[324796709,1714335111386,-373.22,0.00012876,2]
[324796710,1714335111400,-500.0,0.00012876,2]
[324796711,1714335111410,-500.0,0.00012876,2]
[324796712,1714335111419,-564.8,0.00012876,2]
[324796713,1714335111487,-966.12,0.00012876,2]
[324796714,1714335111497,-665.52,0.00012876,2]
[324796715,1714335111507,-500.0,0.00012876,2]
[324796716,1714335111516,-500.0,0.00012876,2]
[324796717,1714335111526,-500.0,0.00012876,2]
[324796718,1714335111536,-431.97,0.00012876,2]
[324796719,1714335111546,-500.0,0.00012876,2]
[324796720,1714335111555,-608.01,0.00012876,2]
[324796721,1714335111565,-500.0,0.00012876,2]
[324796722,1714335111575,-500.0,0.00012876,2]
[324796723,1714335111585,-500.0,0.00012876,2]
[324796724,1714335111594,-706.48,0.00012876,2]
[324796725,1714335111604,-602.98,0.00012876,2]
[324796726,1714335111613,-724.080274,0.00012876,2]
[324796727,1714335111623,-500.0,0.00012876,2]
[324796728,1714335111632,-500.0,0.00012876,2]
[324796729,1714335111641,-1824.84,0.00012876,2]
[324796730,1714335111650,-911.62,0.00012876,2]
[324796731,1714335111660,-1415.41,0.00012876,2]
[324796732,1714335111669,-724.080274,0.00012876,2]
[324796733,1714335111679,-500.0,0.00012876,2]
[324796734,1714335111688,-500.0,0.00012876,2]
[324796735,1714335111697,-500.0,0.00012876,2]
[324796736,1714335111707,-285.079816,0.00012876,2]
[324796737,1714335111716,-500.0,0.00012876,2]
[324796738,1714335111726,-520.83,0.00012876,2]
[324796739,1714335111736,-684.215025,0.00012876,2]
[324796740,1714335111746,-500.0,0.00012876,2]
[324796741,1714335111755,-500.0,0.00012876,2]
[324796742,1714335111765,-500.0,0.00012876,2]
[324796743,1714335111774,-1589.3,0.00012876,2]
[324796744,1714335111783,-684.215025,0.00012876,2]
[324796745,1714335111793,-500.0,0.00012876,2]
[324796746,1714335111803,-1830.16,0.00012876,2]
[324796747,1714335111813,-281.639809,0.00012876,2]
[324796748,1714335111822,-281.639809,0.00012876,2]
[324796749,1714335111831,-447.05,0.00012876,2]
[324796750,1714335111842,-1311.58,0.00012876,2]
[324796751,1714335111851,-632.72,0.00012876,2]
[324796752,1714335111860,-190.425428,0.00012876,2]
[324796753,1714335111869,-500.0,0.00012876,2]
[324796754,1714335111879,-190.425428,0.00012876,2]
[324796755,1714335111889,-500.0,0.00012876,2]
[324796756,1714335111899,-662.93,0.00012876,2]
[324796757,1714335111914,-914.28,0.00012876,2]
[324796758,1714335111925,-500.0,0.00012876,2]
[324796759,1714335111934,-151.0,0.00012876,2]
[324796760,1714335111944,-546.67263304,0.00012876,2]
[324796761,1714335111953,-646.26046106,0.00012876,2]
[324796762,1714335111963,-3422.18,0.00012876,2]
[324796763,1714335111972,-500.0,0.00012876,2]
[324796764,1714335111981,-522.54,0.00012876,2]
[324796765,1714335111990,-500.0,0.00012876,2]
[324796766,1714335112000,-767.88,0.00012876,2]
[324796767,1714335112009,-521.84062366,0.00012876,2]
[324796768,1714335112018,-735.24,0.00012876,2]
[324796769,1714335112027,-706.69,0.00012876,2]
[324796770,1714335112037,-151.0,0.00012876,2]
[324796771,1714335112046,-500.0,0.00012876,2]
[324796772,1714335112055,-259.650878,0.00012876,2]
[324796773,1714335112065,-533.84,0.00012876,2]
[324796774,1714335112074,-1342.45,0.00012876,2]
[324796775,1714335112083,-788.02,0.00012876,2]
[324796776,1714335112092,-2092.94,0.00012876,2]
[324796777,1714335112102,-151.0,0.00012876,2]
[324796778,1714335112112,-259.650878,0.00012876,2]
[324796779,1714335112121,-443.16408967,0.00012876,2]
[324796780,1714335112131,-2167.16,0.00012876,2]
[324796781,1714335112140,-1698.03,0.00012876,2]
[324796782,1714335112150,-554.604274,0.00012876,2]
[324796783,1714335112159,-500.0,0.00012876,2]
[324796784,1714335112168,-500.0,0.00012876,2]
[324796785,1714335112177,-1776.941553,0.00012876,2]
[324796786,1714335112185,-554.604274,0.00012876,2]
[324796787,1714335112194,-500.0,0.00012876,2]
[324796788,1714335112203,-500.0,0.00012876,2]
[324796789,1714335112213,-5663.56,0.00012876,2]
[324796790,1714335112224,-500.0,0.00012876,2]
[324796791,1714335112233,-500.0,0.00012876,2]
[324796792,1714335112243,-1776.941553,0.00012876,2]
[324796793,1714335112252,-709.07,0.00012876,2]
[324796794,1714335112261,-5318.53,0.00012876,2]
[324796795,1714335112270,-500.0,0.00012876,2]
[324796796,1714335112279,-500.0,0.00012876,2]
[324796797,1714335112288,-576.42,0.00012876,2]
[324796798,1714335112298,-673.78,0.00012876,2]
[324796799,1714335112308,-730.03,0.00012876,2]
[324796800,1714335112317,-500.0,0.00012876,2]
[324796801,1714335112326,-1119.99,0.00012876,2]
[324796802,1714335112335,-500.0,0.00012876,2]
[324796803,1714335112344,-3883.79,0.00012876,2]
[324796804,1714335112353,-4497.99,0.00012876,2]
[324796805,1714335112362,-1502.91,0.00012876,2]
[324796806,1714335112371,-505.03,0.00012876,2]
[324796807,1714335112380,-1373.5,0.00012876,2]
[324796808,1714335112390,-500.0,0.00012876,2]
[324796809,1714335112404,-1354.41,0.00012876,2]
[324796810,1714335112413,-10290.32,0.00012876,2]
[324796811,1714335112422,-2176.76,0.00012876,2]
[324796812,1714335112431,-1071.21,0.00012876,2]
[324796813,1714335112442,-500.0,0.00012876,2]
[324796814,1714335112451,-500.0,0.00012876,2]
[324796815,1714335112460,-639.11,0.00012876,2]
[324796816,1714335112469,-500.0,0.00012876,2]
[324796817,1714335112482,-1877.516642,0.00012876,2]
[324796818,1714335112493,-1357.3,0.00012876,2]
[324796819,1714335112502,-8156.81,0.00012876,2]
[324796820,1714335112512,-1877.516642,0.00012876,2]
[324796821,1714335112521,-500.0,0.00012876,2]
[324796822,1714335112530,-583.22,0.00012876,2]
[324796823,1714335112539,-580.74,0.00012876,2]
[324796824,1714335112548,-1739.27,0.00012876,2]
[324796825,1714335112558,-514.49,0.00012876,2]
[324796826,1714335112567,-1338.92,0.00012876,2]
[324796827,1714335112576,-500.0,0.00012876,2]
[324796828,1714335112586,-151.0,0.00012876,2]
[324796829,1714335112595,-1602.59,0.00012876,2]
[324796830,1714335112604,-500.0,0.00012876,2]
[324796831,1714335112614,-3585.18,0.00012876,2]
[324796832,1714335112623,-3404.45,0.00012876,2]
[324796833,1714335112632,-500.0,0.00012876,2]
[324796834,1714335112642,-584.32,0.00012876,2]
[324796835,1714335112651,-3861.32,0.00012876,2]
[324796836,1714335112660,-1528.83,0.00012876,2]
[324796837,1714335112670,-1912.47,0.00012876,2]
[324796838,1714335112679,-2219.685263,0.00012876,2]
[324796839,1714335112688,-500.0,0.00012876,2]
[324796840,1714335112698,-508.27430807,0.00012876,2]
[324796841,1714335112707,-2219.685263,0.00012876,2]
[324796842,1714335112716,-500.0,0.00012876,2]
[324796843,1714335112726,-530.84,0.00012876,2]
[324796844,1714335112735,-1414.12,0.00012876,2]
[324796845,1714335112747,-500.0,0.00012876,2]
[324796846,1714335112758,-1402.340596,0.00012876,2]
[324796847,1714335112768,-500.0,0.00012876,2]
[324796848,1714335112777,-500.0,0.00012876,2]
[324796849,1714335112787,-4357.97,0.00012876,2]
[324796850,1714335112797,-3715.69,0.00012876,2]
[324796851,1714335112807,-1402.340596,0.00012876,2]
[324796852,1714335112818,-914.96,0.00012876,2]
[324796853,1714335112827,-556.03,0.00012876,2]
[324796854,1714335112838,-500.0,0.00012876,2]
[324796855,1714335112847,-503.90033397,0.00012876,2]
[324796856,1714335112857,-2110.76,0.00012876,2]
[324796857,1714335112867,-500.0,0.00012876,2]
[324796858,1714335112876,-500.0,0.00012876,2]
[324796859,1714335112885,-4413.77,0.00012876,2]
[324796860,1714335112894,-162.373722,0.00012876,2]
[324796861,1714335112904,-660.54,0.00012876,2]
[324796862,1714335112914,-151.0,0.00012876,2]
[324796863,1714335112923,-1063.45,0.00012876,2]
[324796864,1714335112932,-162.373722,0.00012876,2]
[324796865,1714335112941,-10713.43,0.00012876,2]
[324796866,1714335112951,-500.0,0.00012876,2]
[324796867,1714335112960,-500.0,0.00012876,2]
[324796868,1714335112969,-777.04,0.00012876,2]
[324796869,1714335112978,-500.0,0.00012876,2]
[324796870,1714335112988,-584.78,0.00012876,2]
[324796871,1714335113003,-2092.03,0.00012876,2]
[324796872,1714335113013,-2059.96,0.00012876,2]
[324796873,1714335113022,-500.0,0.00012876,2]
[324796874,1714335113031,-674.68,0.00012876,2]
[324796875,1714335113039,-6179.61,0.00012876,2]
[324796876,1714335113048,-7807.56,0.00012876,2]
[324796877,1714335113058,-1071.510703,0.00012876,2]
[324796878,1714335113067,-1585.49,0.00012876,2]
[324796879,1714335113075,-522.18,0.00012876,2]
[324796880,1714335113085,-500.0,0.00012876,2]
[324796881,1714335113095,-644.87,0.00012876,2]
[324796882,1714335113104,-1071.510703,0.00012876,2]
[324796883,1714335113113,-500.0,0.00012876,2]
[324796884,1714335113123,-1634.43,0.00012876,2]
[324796885,1714335113132,-500.0,0.00012876,2]
[324796886,1714335113141,-270.937038,0.00012876,2]
[324796887,1714335113150,-500.0,0.00012876,2]
[324796888,1714335113160,-889.84,0.00012876,2]
[324796889,1714335113170,-1305.51,0.00012876,2]
[324796890,1714335113180,-500.0,0.00012876,2]
[324796891,1714335113189,-500.0,0.00012876,2]
[324796892,1714335113198,-7923.02,0.00012876,2]
[324796893,1714335113207,-560.52,0.00012876,2]
[324796894,1714335113216,-270.937038,0.00012876,2]
[324796895,1714335113225,-7586.52,0.00012876,2]
[324796896,1714335113233,-590.45,0.00012876,2]
[324796897,1714335113243,-500.0,0.00012876,2]
[324796898,1714335113255,-500.0,0.00012876,2]
[324796899,1714335113264,-2933.808158,0.00012876,2]
[324796900,1714335113274,-585.65,0.00012876,2]
[324796901,1714335113282,-2052.98,0.00012876,2]
[324796902,1714335113291,-679.49,0.00012876,2]
[324796903,1714335113300,-585.79,0.00012876,2]
[324796904,1714335113309,-5227.15,0.00012876,2]
[324796905,1714335113318,-550.705949,0.00012876,2]
[324796906,1714335113327,-2933.808158,0.00012876,2]
[324796907,1714335113337,-1925.76,0.00012876,2]
[324796908,1714335113345,-500.0,0.00012876,2]
[324796909,1714335113355,-500.0,0.00012876,2]
[324796910,1714335113364,-3698.54,0.00012876,2]
[324796911,1714335113373,-1470.84,0.00012876,2]
[324796912,1714335113382,-537.76,0.00012876,2]
[324796913,1714335113392,-911.54,0.00012876,2]
[324796914,1714335113404,-1419.51,0.00012876,2]
[324796915,1714335113413,-321.367418,0.00012876,2]
[324796916,1714335113424,-550.705949,0.00012876,2]
[324796917,1714335113434,-854.24,0.00012876,2]
[324796918,1714335113443,-318.996419,0.00012876,2]
[324796919,1714335113452,-1077.75,0.00012876,2]
[324796920,1714335113463,-321.367418,0.00012876,2]
[324796921,1714335113474,-500.0,0.00012876,2]
[324796922,1714335113483,-318.996419,0.00012876,2]
[324796923,1714335113496,-530.39,0.00012876,2]
[324796924,1714335113505,-4094.38,0.00012876,2]
[324796925,1714335113515,-2717.25,0.00012876,2]
[324796926,1714335113524,-500.0,0.00012876,2]
[324796927,1714335113534,-579.048538,0.00012876,2]
[324796928,1714335113543,-947.74,0.00012876,2]
[324796929,1714335113554,-1974.12,0.00012876,2]
[324796930,1714335113563,-579.048538,0.00012876,2]
[324796931,1714335113573,-1503.79,0.00012876,2]
[324796932,1714335113587,-1354.91,0.00012876,2]
[324796933,1714335113598,-1990.76,0.00012876,2]
[324796934,1714335113608,-2218.47,0.00012876,2]
[324796935,1714335113617,-500.0,0.00012876,2]
[324796936,1714335113627,-1792.37,0.00012876,2]
[324796937,1714335113636,-989.54,0.00012876,2]
[324796938,1714335113646,-1852.44,0.00012876,2]
[324796939,1714335113657,-500.0,0.00012876,2]
[324796940,1714335113665,-151.0,0.00012876,2]
[324796941,1714335113675,-2057.04,0.00012876,2]
[324796942,1714335113684,-511.72,0.00012876,2]
[324796943,1714335113694,-500.0,0.00012876,2]
[324796944,1714335113703,-500.0,0.00012876,2]
[324796945,1714335113711,-879.95,0.00012876,2]